fUST/lending_fUST_20241016
["ID","MTS","AMOUNT","RATE_DAILY","PERIOD"]
[340349736,1729082364720,-156.2,0.00043293,31]
[340349737,1729082364743,-153.0,0.0004342,30]
[340349738,1729082364768,-8725.09291531,0.00043563,90]
[340349739,1729082364791,-210.4166343,0.00043694,30]
[340349740,1729082364816,-414.3746803,0.00043694,30]
[340349741,1729082364841,-153.0,0.00043694,30]
[340349742,1729082364865,-301.8354596,0.00043694,30]
[340349743,1729082364890,-414.3746803,0.00043694,30]
[340349744,1729082364914,-452.4666899,0.00043694,30]
[340349745,1729082364938,-153.0,0.00043694,30]
[340349746,1729082364964,-210.4166343,0.00043694,30]
[340349747,1729082364989,-210.4166343,0.00043694,30]
[340349748,1729082365013,-414.3746803,0.00043694,30]
[340349749,1729082365038,-153.0,0.00043694,30]
[340349750,1729082365062,-210.4166343,0.00043694,30]
[340349751,1729082365085,-414.3746803,0.00043694,30]
[340349752,1729082365109,-5943.27108771,0.00043724,60]
[340349753,1729082365134,-500.0,0.00043835,120]
[340349754,1729082365158,-500.0,0.00043835,120]
[340349755,1729082365182,-500.0,0.00043835,120]
[340349756,1729082365205,-500.0,0.00043835,120]
[340349757,1729082365230,-500.0,0.00043835,120]
[340349758,1729082365254,-500.0,0.00043835,120]
[340349759,1729082365277,-500.0,0.00043835,120]
[340349760,1729082365301,-612.08995124,0.00043835,120]
[340349761,1729082365326,-4901.68,0.00043835,120]
[340349762,1729082365351,-1000.0,0.00043835,120]
[340349763,1729082365377,-1013.25941711,0.00043835,120]
[340349764,1729082365402,-3125.932945,0.00043836,120]
[340349765,1729082365430,-1554.97,0.000439,36]
[340349766,1729082365457,-1554.97,0.000439,36]
[340349767,1729082365483,-1554.97,0.000439,36]
[340349768,1729082365508,-1554.97,0.000439,36]
[340349769,1729082365533,-1554.97,0.000439,36]
[340349770,1729082365558,-1554.97,0.000439,36]
[340349771,1729082365583,-1554.97,0.000439,36]
[340349772,1729082365609,-1554.97,0.000439,36]
[340349773,1729082365634,-1554.97,0.000439,36]
[340349774,1729082365661,-1554.97,0.000439,36]
[340349775,1729082365687,-1554.97,0.000439,36]
[340349776,1729082365713,-1554.97,0.000439,36]
[340349777,1729082365738,-1554.97,0.000439,36]
[340349778,1729082365764,-1554.97,0.000439,36]
[340349779,1729082365790,-1554.97,0.000439,36]
[340349780,1729082365816,-1554.97,0.000439,36]
[340349781,1729082365841,-1554.97,0.000439,36]
[340349782,1729082365867,-1554.97,0.000439,36]
[340349783,1729082365892,-1554.97,0.000439,36]
[340349784,1729082365917,-1554.97,0.000439,36]
[340349785,1729082365944,-1554.97,0.000439,36]
[340349786,1729082365973,-1554.97,0.000439,36]
[340349787,1729082366000,-1554.97,0.000439,36]
[340349788,1729082366026,-1554.97,0.000439,36]
[340349789,1729082366050,-156.2,0.00043949,31]
[340349790,1729082366079,-5000.0,0.00044,45]
[340349791,1729082366106,-300.0,0.00044,120]
[340349792,1729082366132,-63554.51,0.00044,30]
[340349793,1729082366157,-700.0,0.00044042,120]
[340349794,1729082366183,-500.0,0.00044103,30]
[340349795,1729082366206,-1054.04568162,0.000442,120]
[340349796,1729082366231,-1054.04568158,0.000442,120]
[340349797,1729082366256,-1054.04568158,0.000442,120]
[340349798,1729082366282,-1054.04568158,0.000442,120]
[340349799,1729082366306,-1054.04568158,0.000442,120]
[340349800,1729082366329,-153.0,0.00044242,30]
[340349801,1729082366355,-700.0,0.00044316,120]
[340349802,1729082366380,-4901.68,0.00044383,120]
[340349803,1729082366404,-201.0,0.00044412,120]
[340349804,1729082366429,-201.0,0.00044412,120]
[340349805,1729082366452,-201.0,0.00044412,120]
[340349806,1729082366479,-201.0,0.00044412,120]
[340349807,1729082366507,-201.0,0.00044412,120]
[340349808,1729082366533,-201.0,0.00044412,120]
[340349809,1729082366559,-201.0,0.00044412,120]
[340349810,1729082366583,-201.0,0.00044412,120]
[340349811,1729082366785,-201.0,0.00044412,120]
[340349812,1729082366809,-201.0,0.00044412,120]
[340349813,1729082366833,-201.0,0.00044412,120]
[340349814,1729082366857,-201.0,0.00044412,120]
[340349815,1729082366881,-201.0,0.00044412,120]
[340349816,1729082366904,-201.0,0.00044412,120]
[340349817,1729082366928,-153.0,0.00044433,120]
[340349818,1729082366952,-153.0,0.00044433,120]
[340349819,1729082366977,-153.0,0.00044433,120]
[340349820,1729082367000,-153.0,0.00044433,120]
[340349821,1729082367023,-153.0,0.00044433,120]
[340349822,1729082367047,-210.4166343,0.00044516,30]
[340349823,1729082367071,-414.3746803,0.00044516,30]
[340349824,1729082367096,-210.4166343,0.00044516,30]
[340349825,1729082367120,-413.3084858,0.00044516,30]
[340349826,1729082367144,-153.0,0.00044516,30]
[340349827,1729082367167,-414.3746803,0.00044516,30]
[340349828,1729082367190,-210.4166343,0.00044516,30]
[340349829,1729082367216,-210.4166343,0.00044516,30]
[340349830,1729082367240,-414.3746803,0.00044516,30]
[340349831,1729082367263,-354.4758488,0.00044516,30]
[340349832,1729082367287,-210.4166343,0.00044516,30]
[340349833,1729082367311,-210.4166343,0.00044516,30]
[340349834,1729082367335,-210.4166343,0.00044516,30]
[340349835,1729082367361,-210.0641723,0.00044516,30]
[340349836,1729082367385,-700.0,0.0004459,120]
[340349837,1729082367410,-201.0,0.00044601,120]
[340349838,1729082367435,-201.0,0.00044601,120]
[340349839,1729082367465,-201.0,0.00044601,120]
[340349840,1729082367489,-201.0,0.00044601,120]
[340349841,1729082367513,-201.0,0.00044601,120]
[340349842,1729082367537,-201.0,0.00044601,120]
[340349843,1729082367562,-201.0,0.00044601,120]
[340349844,1729082367585,-201.0,0.00044601,120]
[340349845,1729082367609,-201.0,0.00044601,120]
[340349846,1729082367633,-201.0,0.00044601,120]
[340349847,1729082367658,-201.0,0.00044601,120]
[340349848,1729082367683,-201.0,0.00044601,120]
[340349849,1729082367706,-201.0,0.00044601,120]
[340349850,1729082367734,-201.0,0.00044601,120]
[340349851,1729082367757,-156.2,0.00044604,31]
[340349852,1729082367783,-153.0,0.00044619,120]
[340349853,1729082367807,-153.0,0.00044619,120]
[340349854,1729082367831,-153.0,0.00044619,120]
[340349855,1729082367855,-153.0,0.00044619,120]
[340349856,1729082367879,-153.0,0.00044619,120]
[340349857,1729082367903,-216.67717156,0.000447,120]
[340349858,1729082367928,-132359.5844,0.0004474,30]
[340349859,1729082367952,-201.0,0.00044787,120]
[340349860,1729082367978,-201.0,0.00044787,120]
[340349861,1729082368003,-101.71530912,0.00044787,120]
[340349863,1729082390404,-1963.52,0.000275,30]
[340349864,1729082390447,-1963.52,0.000287,30]
[340349865,1729082390475,-1963.52,0.0003,30]
[340349866,1729082390510,-1963.52,0.000312,30]
[340349867,1729082390538,-1963.52,0.000323,30]
[340349868,1729082390567,-56492.9,0.00033,30]
[340349869,1729082390591,-242.45,0.000336,30]
[340349870,1729082390615,-1963.52,0.000336,30]
[340349871,1729082390644,-56492.9,0.00036,30]
[340349872,1729082390688,-2325.38,0.00043,30]
[340349873,1729082390712,-242.45,0.00043,30]
[340349874,1729082390736,-1963.52,0.00043,30]
[340349875,1729082390766,-150.0,0.00044787,30]
[340349876,1729082390790,-99.28469088,0.00044787,120]
[340349877,1729082390825,-201.0,0.00044787,120]
[340349878,1729082390852,-201.0,0.00044787,120]
[340349879,1729082390878,-201.0,0.00044787,120]
[340349880,1729082390904,-201.0,0.00044787,120]
[340349881,1729082390930,-201.0,0.00044787,120]
[340349882,1729082390954,-201.0,0.00044787,120]
[340349883,1729082390977,-201.0,0.00044787,120]
[340349884,1729082391005,-201.0,0.00044787,120]
[340349885,1729082391028,-201.0,0.00044787,120]
[340349886,1729082391052,-201.0,0.00044787,120]
[340349887,1729082391079,-201.0,0.00044787,120]
[340349888,1729082391102,-153.0,0.00044806,120]
[340349889,1729082391125,-153.0,0.00044806,120]
[340349890,1729082391149,-153.0,0.00044806,120]
[340349891,1729082391172,-153.0,0.00044806,120]
[340349892,1729082391196,-153.0,0.00044806,120]
[340349893,1729082391220,-4901.68,0.00044931,120]
[340349894,1729082391244,-1461.30370988,0.00045,120]
[340349895,1729082391268,-1113.80562833,0.00045,60]
[340349896,1729082391291,-263.90093998,0.00045,120]
[340349897,1729082391315,-222.87842584,0.00045,120]
[340349898,1729082391338,-300.0,0.00045,120]
[340349899,1729082391366,-1000.0,0.00045,120]
[340349900,1729082391390,-475.35984025,0.00045,120]
[340349901,1729082391414,-50000.0,0.00045,30]
[340349902,1729082391440,-5000.0,0.00045,60]
[340349903,1729082391464,-1000.0,0.00045,30]
[340349904,1729082391488,-24633.35350803,0.00045,30]
[340349905,1729082391512,-39815.72437153,0.00045,30]
[340349906,1729082391539,-3000.0,0.0004519,120]
[340349907,1729082391566,-156.2,0.0004526,31]
[340349908,1729082391592,-4901.68,0.00045479,120]
[340349909,1729082391618,-687.71,0.000455,120]
[340349910,1729082391643,-151.0,0.00045616,120]
[340349911,1729082391666,-179.19325338,0.0004567,30]
[340349912,1729082391691,-156.2,0.00045915,31]
[340349913,1729082391723,-150.0,0.00045942,120]
[340349914,1729082391750,-5000.0,0.00046,46]
[340349915,1729082391774,-300.0,0.00046,120]
[340349916,1729082391797,-17427.80388556,0.00046,60]
[340349917,1729082391822,-4901.68,0.00046027,120]
[340349918,1729082391845,-5943.27108771,0.00046224,60]
[340349919,1729082391868,-500.0,0.00046425,30]
[340349920,1729082391893,-814.36084066,0.00046547,120]
[340349921,1729082391917,-156.2,0.00046571,31]
[340349922,1729082391941,-2000.0,0.00046575,120]
[340349923,1729082391964,-2000.0,0.00046575,120]
[340349924,1729082391987,-2000.0,0.00046575,120]
[340349925,1729082392012,-2000.0,0.00046575,120]
[340349926,1729082392035,-2000.0,0.00046575,120]
[340349927,1729082392060,-4901.68,0.00046575,120]
[340349928,1729082392084,-171.629968,0.00046575,120]
[340349929,1729082392107,-171.629968,0.00046575,120]
[340349930,1729082392131,-171.629968,0.00046575,120]
[340349931,1729082392155,-171.629968,0.00046575,120]
[340349932,1729082392180,-171.629968,0.00046575,120]
[340349933,1729082392203,-171.629968,0.00046575,120]
[340349934,1729082392226,-171.629968,0.00046575,120]
[340349935,1729082392250,-171.629968,0.00046575,120]
[340349936,1729082392275,-171.629968,0.00046575,120]
[340349937,1729082392299,-171.629968,0.00046575,120]
[340349938,1729082392323,-171.629968,0.00046575,120]
[340349939,1729082392350,-171.629968,0.00046575,120]
[340349940,1729082392378,-171.629968,0.00046575,120]
[340349941,1729082392401,-171.629968,0.00046575,120]
[340349942,1729082392424,-171.629968,0.00046575,120]
[340349943,1729082392452,-171.629968,0.00046575,120]
[340349944,1729082392475,-171.629968,0.00046575,120]
[340349945,1729082392501,-171.629968,0.00046575,120]
[340349946,1729082392525,-171.629968,0.00046575,120]
[340349947,1729082392777,-171.629968,0.00046575,120]
[340349948,1729082392803,-751.81429629,0.00046685,90]
[340349949,1729082392833,-300.0,0.000467,30]
[340349950,1729082392857,-50000.0,0.000468,30]
[340349951,1729082392882,-150.0,0.00046824,120]
[340349952,1729082392906,-150.0,0.00046906,120]
[340349953,1729082392931,-1000.0,0.00047,120]
[340349954,1729082392955,-7233.93487331,0.00047,30]
[340349955,1729082392978,-40567.0,0.00047,30]
[340349956,1729082393002,-1363.49856396,0.00047,30]
[340349957,1729082393028,-4901.68,0.00047123,120]
[340349958,1729082393053,-233.76599901,0.000472,120]
[340349959,1729082393076,-1256.6067737,0.000472,120]
[340349960,1729082393099,-156.2,0.00047226,60]
[340349961,1729082393123,-750.0,0.00047397,120]
[340349962,1729082393148,-5000.0,0.00047417,30]
[340349963,1729082393173,-560471.9099517,0.0004744,30]
[340349964,1729082398346,-153.0,0.0004422,120]
[340349965,1729082398373,-153.0,0.0004422,120]
[340349966,1729082398398,-153.0,0.0004422,120]
[340349967,1729082398425,-153.0,0.0004422,120]
[340349968,1729082398451,-153.0,0.0004422,120]
[340349969,1729082398476,-150.0,0.00044787,30]
[340349970,1729082398506,-539.031,0.00046575,30]
[340349971,1729082398531,-998545.969,0.0004744,30]
[340349972,1729082404671,-945.520047,0.00015631,2]
[340349973,1729082404694,-564.418556,0.00015816,2]
[340349974,1729082404723,-191.1787549,0.00015827,2]
[340349975,1729082404759,-158.56223,0.00015935,2]
[340349976,1729082404808,-158.56223,0.0001599,2]
[340349977,1729082404859,-158.56223,0.00016046,2]
[340349978,1729082404887,-158.56223,0.00016101,2]
[340349979,1729082404914,-158.56223,0.00016156,2]
[340349980,1729082404942,-158.56223,0.00016212,2]
[340349981,1729082404966,-201.58956268,0.00016222,2]
[340349982,1729082405000,-158.56223,0.00016267,2]
[340349983,1729082405029,-945.520047,0.00016316,2]
[340349984,1729082405058,-158.56223,0.00016323,2]
[340349985,1729082405085,-158.56223,0.00016378,2]
[340349986,1729082405111,-158.56223,0.00016433,2]
[340349987,1729082405145,-158.56223,0.00016489,2]
[340349988,1729082405170,-158.56223,0.00016544,2]
[340349989,1729082405195,-158.56223,0.00016599,2]
[340349990,1729082405221,-158.56223,0.00016655,2]
[340349991,1729082405244,-201.58956267,0.00016688,2]
[340349992,1729082405273,-158.56223,0.0001671,2]
[340349993,1729082405297,-767.196439,0.00016757,2]
[340349994,1729082405320,-767.196439,0.00016761,2]
[340349995,1729082405345,-158.56223,0.00016766,2]
[340349996,1729082405372,-767.196439,0.00016766,2]
[340349997,1729082405395,-300.0,0.00016766,2]
[340349998,1729082405421,-300.0,0.0001677,2]
[340349999,1729082405446,-767.196439,0.0001677,2]
[340350000,1729082405476,-767.196439,0.00016775,2]
[340350001,1729082405500,-767.196439,0.00016779,2]
[340350002,1729082405528,-767.196439,0.00016784,2]
[340350003,1729082405552,-767.196439,0.00016788,2]
[340350004,1729082405577,-767.196439,0.00016792,2]
[340350005,1729082405600,-767.196439,0.00016797,2]
[340350006,1729082405624,-767.196439,0.00016801,2]
[340350007,1729082405650,-767.196439,0.00016806,2]
[340350008,1729082405674,-767.196439,0.0001681,2]
[340350009,1729082405697,-767.196439,0.00016814,2]
[340350010,1729082405720,-767.196439,0.00016819,2]
[340350011,1729082405742,-767.196439,0.00016823,2]
[340350012,1729082405772,-767.196439,0.00016828,2]
[340350013,1729082405795,-767.196439,0.00016832,2]
[340350014,1729082405818,-767.196439,0.00016836,2]
[340350015,1729082405841,-767.196439,0.00016841,2]
[340350016,1729082405864,-945.520047,0.00017001,2]
[340350017,1729082405889,-523.73896275,0.00017057,2]
[340350018,1729082416528,-12187.75735605,0.00040244,120]
[340350019,1729082416563,-157.8116045,0.00042898,120]
[340350020,1729082416591,-500.0,0.00044042,120]
[340350021,1729082416617,-153.0,0.00044201,120]
[340350022,1729082416643,-153.0,0.00044201,120]
[340350023,1729082416668,-153.0,0.00044201,120]
[340350024,1729082416695,-153.0,0.00044201,120]
[340350025,1729082416720,-153.0,0.00044201,120]
[340350026,1729082416745,-153.0,0.00044201,120]
[340350027,1729082416777,-153.0,0.00044201,120]
[340350028,1729082416802,-153.0,0.00044201,120]
[340350029,1729082416828,-153.0,0.00044201,120]
[340350030,1729082416855,-153.0,0.00044201,120]
[340350031,1729082416887,-153.0,0.00044201,120]
[340350032,1729082416915,-153.0,0.00044201,120]
[340350033,1729082416947,-153.0,0.00044201,120]
[340350034,1729082416975,-153.0,0.00044201,120]
[340350035,1729082417000,-153.0,0.00044201,120]
[340350036,1729082417027,-153.0,0.00044201,120]
[340350037,1729082417052,-153.0,0.00044201,120]
[340350038,1729082417078,-153.0,0.00044201,120]
[340350039,1729082417103,-153.0,0.00044201,120]
[340350040,1729082417580,-500.0,0.00044316,120]
[340350041,1729082417622,-500.0,0.0004459,120]
[340350042,1729082417648,-500.0,0.00044864,120]
[340350043,1729082417674,-500.0,0.00045138,120]
[340350044,1729082417700,-500.0,0.00045412,120]
[340350045,1729082417724,-500.0,0.0004596,120]
[340350046,1729082417750,-146121.7630483,0.0004744,30]
[340350047,1729082417776,-294.217,0.0004744,30]
[340350048,1729082417800,-423.9040408,0.00047562,120]
[340350049,1729082417827,-4901.68,0.00047671,120]
[340350050,1729082417851,-300.0,0.000477,32]
[340350051,1729082417876,-1460.38262191,0.00047868,107]
[340350052,1729082417900,-5000.0,0.00047896,30]
[340350053,1729082417925,-500.0,0.00047945,30]
[340350054,1729082417950,-502.37368238,0.00047945,30]
[340350055,1729082417977,-5000.0,0.00048,48]
[340350056,1729082418002,-300.0,0.00048,120]
[340350057,1729082418027,-20000.0,0.00048,30]
[340350058,1729082418051,-1735.28,0.00048,40]
[340350059,1729082418075,-1363.0,0.00048,30]
[340350060,1729082418099,-268.109247,0.00048,30]
[340350061,1729082418123,-56492.9,0.00048,30]
[340350062,1729082418149,-4901.68,0.00048219,120]
[340350063,1729082418174,-151.0,0.00048219,120]
[340350064,1729082418202,-1554.97,0.000485,45]
[340350065,1729082418233,-1554.97,0.000485,45]
[340350066,1729082418258,-1554.97,0.000485,45]
[340350067,1729082418286,-1554.97,0.000485,45]
[340350068,1729082418313,-1554.97,0.000485,45]
[340350069,1729082418340,-1554.97,0.000485,45]
[340350070,1729082418367,-1554.97,0.000485,45]
[340350071,1729082418398,-1554.97,0.000485,45]
[340350072,1729082418427,-1554.97,0.000485,45]
[340350073,1729082418455,-1554.97,0.000485,45]
[340350074,1729082418483,-1554.97,0.000485,45]
[340350075,1729082418511,-1554.97,0.000485,45]
[340350076,1729082418544,-1554.97,0.000485,45]
[340350077,1729082418577,-1554.97,0.000485,45]
[340350078,1729082418606,-1554.97,0.000485,45]
[340350079,1729082418636,-1554.97,0.000485,45]
[340350080,1729082418663,-414.71110331,0.00048658,120]
[340350081,1729082418689,-300.0,0.000487,34]
[340350082,1729082418719,-5943.27108771,0.00048724,60]
[340350083,1729082418747,-4901.68,0.00048767,120]
[340350084,1729082418778,-500.0,0.00048767,120]
[340350085,1729082418803,-500.0,0.00048767,120]
[340350086,1729082418828,-500.0,0.00048767,120]
[340350087,1729082418853,-500.0,0.00048767,120]
[340350088,1729082418878,-500.0,0.00048767,120]
[340350089,1729082418903,-500.0,0.00048767,120]
[340350090,1729082418938,-500.0,0.00048767,120]
[340350091,1729082418963,-500.0,0.00048767,120]
[340350092,1729082418989,-500.0,0.00048767,120]
[340350093,1729082419019,-500.0,0.00048767,120]
[340350094,1729082419044,-500.0,0.00048767,120]
[340350095,1729082419069,-500.0,0.00048767,120]
[340350096,1729082419094,-500.0,0.00048767,120]
[340350097,1729082419119,-500.0,0.00048767,120]
[340350098,1729082419144,-500.0,0.00048767,120]
[340350099,1729082419169,-500.0,0.00048767,120]
[340350100,1729082419194,-500.0,0.00048767,120]
[340350101,1729082419219,-500.0,0.00048767,120]
[340350102,1729082419245,-290.98247151,0.00048767,120]
[340350103,1729082419275,-500.0,0.00048868,30]
[340350104,1729082419301,-8000.0,0.00048888,120]
[340350105,1729082419326,-5756.64400174,0.0004895,120]
[340350106,1729082419351,-570.00770709,0.00049,120]
[340350107,1729082419378,-1107.85413646,0.00049,120]
[340350108,1729082419403,-1780.01245059,0.00049,120]
[340350109,1729082419432,-20000.0,0.00049,30]
[340350110,1729082419458,-916.38,0.00049315,30]
[340350111,1729082419484,-1031.31,0.00049315,120]
[340350112,1729082419511,-2622.93,0.00049315,120]
[340350113,1729082419542,-500.0,0.00049315,120]
[340350114,1729082419568,-500.0,0.00049315,120]
[340350115,1729082419594,-500.0,0.00049315,120]
[340350116,1729082419619,-500.0,0.00049315,120]
[340350117,1729082419645,-500.0,0.00049315,120]
[340350118,1729082419672,-500.0,0.00049315,120]
[340350119,1729082419697,-500.0,0.00049315,120]
[340350120,1729082419722,-500.0,0.00049315,120]
[340350121,1729082419747,-626.01709521,0.00049315,120]
[340350122,1729082419774,-4901.68,0.00049315,120]
[340350123,1729082419799,-8165.12,0.00049315,60]
[340350124,1729082419823,-3125.932945,0.00049315,120]
[340350125,1729082419847,-151.0,0.00049315,120]
[340350126,1729082419871,-151.0,0.00049315,120]
[340350127,1729082419897,-151.0,0.00049315,120]
[340350128,1729082419923,-151.0,0.00049315,120]
[340350129,1729082419947,-151.452679,0.00049315,120]
[340350130,1729082419973,-150.0,0.00049423,120]
[340350131,1729082420000,-621791.63572144,0.0004944,30]
[340350132,1729082426981,-500.0,0.00046508,120]
[340350133,1729082427007,-500.0,0.00047056,120]
[340350134,1729082427034,-500.0,0.00047604,120]
[340350135,1729082427060,-500.0,0.00048152,120]
[340350136,1729082427086,-500.0,0.000487,120]
[340350137,1729082427114,-997500.0,0.0004944,30]
[340350138,1729082437349,-3000.0,0.00016896,2]
[340350139,1729082437373,-24376.26103725,0.00017057,2]
[340350140,1729082437398,-322.9105422,0.00017138,2]
[340350141,1729082437421,-1546.7629316,0.00017146,2]
[340350142,1729082437445,-3609.0475152,0.00017572,2]
[340350143,1729082437469,-10199.62263441,0.00018,10]
[340350144,1729082437491,-239.11669762,0.00018,2]
[340350145,1729082437514,-420.0,0.00018316,2]
[340350146,1729082437538,-286.27864172,0.00018343,2]
[340351190,1729083038183,-282.209278,0.00017925,2]
[340351191,1729083038194,-300.0,0.00018003,2]
[340351192,1729083038206,-159.41113175,0.00018004,2]
[340351193,1729083038217,-867.48959025,0.00018004,2]
[340351207,1729083040557,-1062.25197,0.00018004,2]
[340351208,1729083040576,-6782.95386088,0.00018004,2]
[340351229,1729083045943,-1565.28798229,0.00018004,2]
[340359749,1729083290537,200.0,0.00027,60]
[340359753,1729083603832,500.0,0.0001,2]
[340359754,1729083604442,500.0,0.0001,2]
[340359755,1729083604878,500.0,0.0001,2]
[340359756,1729083605303,160.8546858,0.0001,2]
[340359805,1729084232078,-538.89376015,0.00016485,2]
[340359806,1729084232088,-2084.42458808,0.00016487,2]
[340360411,1729084648943,549.41515118,0.00027,120]
[340360415,1729084899331,799.32,0.00027,60]
[340360416,1729084921264,799.32,0.00014,2]
[340360423,1729085313119,175.69856935,0.00012,7]
[340360424,1729085313838,3127.59310125,0.000134,2]
[340360444,1729085432186,-300.0,0.00014878,2]
[340360445,1729085432196,-300.0,0.00014878,2]
[340360446,1729085432206,-1999.15,0.00014879,2]
[340360450,1729085432246,-6782.7911536,0.00014879,2]
[340360514,1729085488321,167.79,0.00014,10]
[340360516,1729085770527,300.003,0.0002,14]
[340360517,1729085812974,9422.2898518,0.0001384,2]
[340360518,1729085985219,156.0,0.0002424,120]
[340360521,1729086182582,150.5,0.0002089,120]
[340360522,1729086183048,150.5,0.0002088,120]
[340360523,1729086183556,150.5,0.0002087,120]
[340360524,1729086190874,3853.6,0.00027,60]
[340360525,1729086256072,24900.0,0.00013645,2]
[340360526,1729086431856,216.59,0.00010959,2]
[340360527,1729086442442,180.49,0.00010959,2]
[340360528,1729086453020,150.41,0.00010959,2]
[340360529,1729086463758,752.09,0.00010959,2]
[340360530,1729086474291,286.38,0.00010959,2]
[340360531,1729086481239,282.209279,0.00013699,2]
[340360532,1729086484812,455.25,0.00010959,2]
[340360533,1729086495323,379.37,0.00010959,2]
[340360534,1729086506126,316.15,0.00010959,2]
[340360535,1729086516523,263.45,0.00010959,2]
[340360536,1729086519906,157.0,0.00027,120]
[340360539,1729086548694,219.55,0.00010959,2]
[340360540,1729086559240,182.95,0.00010959,2]
[340360541,1729086570054,152.46,0.00010959,2]
[340360542,1729086581013,762.34,0.00010959,2]
[340360576,1729086636138,-194.338631,0.00014221,2]
[340360577,1729086636148,-4751.80250193,0.000145,2]
[340360578,1729086636157,-300.0,0.00014563,2]
[340360579,1729086636167,-300.0,0.00014563,2]
[340360580,1729086636177,-6121.53991822,0.00014564,2]
[340360581,1729086636187,-194.338631,0.00014592,2]
[340360582,1729086636198,-500.0,0.00014598,2]
[340360583,1729086636207,-150.0,0.00014601,2]
[340360584,1729086636216,-500.0,0.00014678,2]
[340360585,1729086636226,-4363.68841421,0.00014679,2]
[340360586,1729086636236,-151.0,0.00014686,2]
[340360587,1729086636245,-800.0,0.00014778,2]
[340360588,1729086636255,-732.26057961,0.00014779,2]
[340360589,1729086636268,-151.0,0.00014779,2]
[340360590,1729086636278,-151.0,0.00014779,2]
[340360591,1729086636288,-151.0,0.00014779,2]
[340360592,1729086636298,-245.538655,0.00014779,2]
[340360593,1729086636307,-245.538655,0.00014779,2]
[340360594,1729086636317,-328.713992,0.00014779,2]
[340360595,1729086636327,-328.713992,0.00014779,2]
[340360596,1729086636337,-151.0,0.00014779,2]
[340360597,1729086636346,-10000.0,0.00014779,2]
[340360598,1729086636356,-10000.0,0.00014779,2]
[340360599,1729086636366,-10000.0,0.00014779,2]
[340360600,1729086636376,-151.0,0.00014779,2]
[340360601,1729086636386,-151.0,0.00014779,2]
[340360602,1729086636397,-151.0,0.00014779,2]
[340360603,1729086636407,-259.367136,0.00014779,2]
[340360604,1729086636417,-151.0,0.00014779,2]
[340360605,1729086636427,-151.0,0.00014779,2]
[340360606,1729086636437,-172.13994,0.00014779,2]
[340360607,1729086636447,-172.13994,0.00014779,2]
[340360608,1729086636457,-172.13994,0.00014779,2]
[340360609,1729086636467,-172.13994,0.00014779,2]
[340360610,1729086636476,-172.13994,0.00014779,2]
[340360611,1729086636486,-172.13994,0.00014779,2]
[340360612,1729086636496,-172.13994,0.00014779,2]
[340360613,1729086636506,-172.13994,0.00014779,2]
[340360614,1729086636518,-151.0,0.00014779,2]
[340360615,1729086636528,-151.0,0.00014779,2]
[340360616,1729086636537,-151.0,0.00014779,2]
[340360617,1729086636547,-151.0,0.00014779,2]
[340360618,1729086636557,-151.0,0.00014779,2]